bitfinex/quotes_SOLUSD_20250601
["timestamp","ask_amount","ask_price","bid_price","bid_amount"]
[1748819822592,29.7765679,157.56,157.53,14.13162017]
[1748819822799,26.0,157.54,157.53,14.13162017]
[1748819823002,26.0,157.54,157.52,14.13162017]
[1748819823414,26.0,157.54,157.52,20.47975946]
[1748819823798,26.0,157.54,157.51,6.34871408]
[1748819824000,26.0,157.54,157.5,22.4649535]
[1748819824590,26.0,157.54,157.51,14.13162017]
[1748819825315,26.0,157.54,157.52,14.13162017]
[1748819825520,26.0,157.54,157.53,14.13162017]
[1748819827497,29.7765679,157.56,157.53,14.13162017]
[1748819827818,55.7765679,157.56,157.53,14.13162017]
[1748819827989,55.7765679,157.56,157.52,20.47984074]
[1748819828390,148.9,157.55,157.52,20.47984074]
[1748819829114,148.9,157.55,157.54,14.13162017]
[1748819829722,14.13162017,157.61,157.54,14.13162017]
[1748819829898,26.0,157.58,157.56,14.13162017]
[1748819832204,26.0,157.57,157.55,14.13162017]
[1748819832394,26.0,157.57,157.53,20.47926718]
[1748819832586,26.0,157.56,157.53,14.13162017]
[1748819832888,26.0,157.56,157.52,20.47990745]
[1748819833699,26.0,157.56,157.53,14.13162017]
[1748819834227,26.0,157.56,157.54,14.13162017]
[1748819835996,148.9,157.55,157.54,14.13162017]
[1748819836832,148.9,157.55,157.52,6.34828728]
[1748819837010,148.9,157.55,157.54,14.13162017]
[1748819838117,148.9,157.55,157.53,14.13162017]
[1748819839711,148.9,157.55,157.53,20.47954912]
[1748819840518,148.9,157.55,157.52,6.34828759]
[1748819840720,148.9,157.55,157.53,14.13162017]
[1748819841415,148.9,157.55,157.52,6.34828759]
[1748819841617,148.9,157.55,157.53,14.13162017]
[1748819841822,148.9,157.54,157.53,14.13162017]
[1748819844926,148.9,157.54,157.53,20.47961737]
[1748819846643,148.9,157.54,157.53,14.13162017]
[1748819847656,26.0,157.56,157.53,14.13162017]
[1748819848235,32.34685738,157.56,157.52,14.13162017]
[1748819848452,14.13162017,157.55,157.5,22.4649535]
[1748819848748,148.9,157.53,157.5,22.4649535]
[1748819849255,148.9,157.52,157.5,22.4649535]
[1748819849453,148.9,157.51,157.5,8.33333333]
[1748819849655,20.47900818,157.55,157.5,22.4649535]
[1748819849963,18.64964886,157.54,157.5,22.4649535]
[1748819850152,32.78126903,157.54,157.5,8.33333333]
[1748819851054,18.64964886,157.54,157.5,8.33333333]
[1748819851238,18.64964886,157.54,157.5,22.4649535]
[1748819851669,32.34809219,157.53,157.5,8.33333333]
[1748819851848,46.47971236,157.53,157.5,8.33333333]
[1748819852028,32.34809219,157.53,157.5,8.33333333]
[1748819852232,46.47971236,157.53,157.5,8.33333333]
[1748819853047,85.51971236,157.53,157.5,8.33333333]
[1748819853729,14.13162017,157.52,157.5,8.33333333]
[1748819854976,20.48015657,157.52,157.5,8.33333333]
[1748819856340,85.51972438,157.53,157.5,8.33333333]
[1748819859348,14.13162017,157.52,157.5,8.33333333]
[1748819860459,58.78126903,157.51,157.5,8.33333333]
[1748819861263,32.78126903,157.51,157.5,8.33333333]
[1748819861556,39.13007228,157.51,157.5,8.33333333]
[1748819865769,39.13007228,157.51,157.5,16.66666666]
[1748819865967,26.0,157.51,157.5,16.66666666]
[1748819866171,1.5354,157.57,157.5,30.79828683]
[1748819866351,14.13162017,157.58,157.53,14.13162017]
[1748819866557,18.64964886,157.58,157.53,14.13162017]
[1748819867074,26.0,157.57,157.53,14.13162017]
[1748819867246,26.0,157.57,157.54,14.13162017]
[1748819867750,26.0,157.56,157.54,20.47914979]
[1748819867948,55.03517469,157.59,157.54,14.13162017]
[1748819868164,26.0,157.56,157.51,6.34880325]
[1748819868369,26.0,157.56,157.53,14.13162017]
[1748819871366,174.9,157.56,157.55,14.13162017]
[1748819871567,148.9,157.56,157.55,14.13162017]
[1748819873452,148.9,157.56,157.54,14.13162017]
[1748819875750,148.9,157.56,157.54,20.47920929]
[1748819876359,148.9,157.56,157.55,14.13162017]
[1748819877373,26.0,157.58,157.55,14.13162017]
[1748819877677,26.0,157.58,157.56,20.47827143]
[1748819877873,78.1457608,157.62,157.57,14.13162017]
[1748819878177,26.0,157.6,157.57,14.13162017]
[1748819879462,26.0,157.6,157.56,20.47827143]
[1748819879887,40.13162017,157.6,157.56,6.34665126]
[1748819882073,40.13162017,157.6,157.55,20.47874575]
[1748819883185,148.9,157.59,157.55,20.47874575]
[1748819885787,163.03162017,157.59,157.54,20.47909141]
[1748819885966,14.13162017,157.58,157.53,14.13162017]
[1748819886163,148.9,157.57,157.53,14.13162017]
[1748819887182,148.9,157.57,157.53,20.47925477]
[1748819888279,148.9,157.57,157.55,14.13162017]
[1748819889190,148.9,157.56,157.55,6.34680154]
[1748819889372,148.9,157.56,157.55,20.47842171]
[1748819897391,148.9,157.59,157.55,36.34640012]
[1748819897575,148.9,157.59,157.58,14.13162017]
[1748819897774,187.82,157.67,157.58,14.13162017]
[1748819897979,26.0,157.65,157.61,14.13162017]
[1748819898190,163.03162017,157.66,157.61,14.13162017]
[1748819898377,26.0,157.65,157.61,14.13162017]
[1748819899192,26.0,157.65,157.62,6.34437254]
[1748819899495,26.0,157.65,157.62,20.47599271]
[1748819899680,26.0,157.65,157.62,6.34437254]
[1748819901179,26.0,157.65,157.62,20.47599271]
[1748819902575,26.0,157.65,157.61,20.47634029]
[1748819903698,40.13162017,157.65,157.6,20.47676982]
[1748819903878,148.9,157.64,157.6,20.47676982]
[1748819904478,163.03162017,157.64,157.6,20.47676982]
[1748819904888,163.03162017,157.64,157.6,6.34514965]
[1748819907305,148.9,157.64,157.6,20.47676982]
[1748819909804,148.9,157.63,157.59,30.65711668]
[1748819910096,163.03162017,157.63,157.59,10.18]
[1748819910296,14.13162017,157.62,157.58,6.34590566]
[1748819910483,148.9,157.61,157.57,20.47789364]
[1748819915796,148.9,157.6,157.57,20.47789364]
[1748819917305,148.9,157.6,157.57,6.34627347]
[1748819917700,148.9,157.59,157.56,6.34668595]
[1748819918208,148.9,157.59,157.55,30.57871746]
[1748819918397,163.03162017,157.59,157.55,16.44709729]
[1748819918599,163.03162017,157.59,157.55,10.1]
[1748819919335,163.03162017,157.59,157.55,16.44705448]
[1748819920108,189.03162017,157.59,157.55,10.1]
[1748819921347,14.13162017,157.58,157.55,10.1]
[1748819921503,163.03162017,157.57,157.52,14.13162017]
[1748819922511,148.9,157.56,157.52,14.13162017]
[1748819922934,163.03162017,157.56,157.51,24.23162017]
[1748819923230,148.9,157.55,157.52,6.34836025]
[1748819923922,148.9,157.55,157.51,30.58029993]
[1748819924741,163.03162017,157.55,157.51,16.44867976]
[1748819927104,163.03162017,157.55,157.51,10.1]
[1748819927306,14.13162017,157.53,157.51,10.1]
[1748819927510,148.9,157.52,157.51,10.1]
[1748819927740,14.13162017,157.53,157.51,10.1]
[1748819928140,14.13162017,157.53,157.49,6.43921583]
[1748819928939,14.13162017,157.54,157.49,20.570836]
[1748819932029,14.13162017,157.6,157.53,14.13162017]
[1748819932228,148.9,157.59,157.55,14.13162017]
[1748819932635,174.9,157.59,157.55,14.13162017]
[1748819933129,174.9,157.59,157.55,20.47858769]
[1748819933437,148.9,157.58,157.57,14.13162017]
[1748819935026,148.9,157.58,157.57,20.4780059]
[1748819936213,148.9,157.58,157.53,54.70930717]
[1748819936417,148.9,157.57,157.55,14.13162017]
[1748819936827,148.9,157.57,157.54,14.13162017]
[1748819937223,148.9,157.57,157.55,14.13162017]
[1748819937427,148.9,157.57,157.56,6.34678852]
[1748819938038,148.9,157.57,157.5,6.34920634]
[1748819938039,26.0,157.56,157.5,6.34920634]
[1748819938337,163.03162017,157.55,157.5,20.48082651]
[1748819938731,148.9,157.55,157.5,20.48082651]
[1748819938910,14.13162017,157.54,157.5,20.48082651]
[1748819939111,163.03162017,157.55,157.5,6.34920634]
[1748819939321,163.03162017,157.55,157.5,20.48082651]
[1748819939857,163.03162017,157.55,157.5,6.34920634]
[1748819940356,148.9,157.55,157.5,6.34920634]
[1748819940523,163.03162017,157.55,157.5,6.34920634]
[1748819941041,14.13162017,157.54,157.5,6.34920634]
[1748819941968,148.9,157.55,157.5,20.48082651]
[1748819942138,148.9,157.55,157.53,14.13162017]
[1748819942333,148.9,157.55,157.52,14.13162017]
[1748819942535,148.9,157.55,157.51,14.13162017]
[1748819942748,148.9,157.55,157.51,24.19162017]
[1748819942964,163.03162017,157.55,157.51,10.06]
[1748819943158,14.13162017,157.54,157.51,10.06]
[1748819943951,14.13162017,157.54,157.51,16.40853076]
[1748819944760,163.03162017,157.55,157.51,16.40853076]
[1748819946565,148.9,157.55,157.54,14.13162017]
[1748819948266,148.9,157.55,157.54,20.47921443]
[1748819948573,163.03162017,157.62,157.54,36.34820008]
[1748819948740,26.0,157.59,157.57,14.13162017]
[1748819949381,26.0,157.59,157.58,6.34598299]
[1748819950148,174.9,157.62,157.58,20.47760316]
[1748819950368,174.9,157.62,157.61,14.13162017]
[1748819950574,148.9,157.62,157.61,14.13162017]
[1748819951449,148.9,157.62,157.61,20.47639524]
[1748819954166,26.0,157.65,157.61,20.47639524]
[1748819955389,26.0,157.65,157.61,14.13162017]
[1748819955681,14.13162017,157.62,157.57,20.4780059]
[1748819955880,14.13162017,157.63,157.58,14.13162017]
[1748819956794,78.97162017,157.64,157.59,14.13162017]
[1748819957179,64.84,157.64,157.59,20.47701686]
[1748819957792,78.97162017,157.64,157.59,20.47701686]
[1748819958703,14.13162017,157.63,157.58,20.47749242]
[1748819959108,64.84,157.64,157.58,20.47749242]
[1748819959299,78.97162017,157.64,157.59,14.13162017]
[1748819960153,12.49947866,157.67,157.58,6.34587225]
[1748819960154,12.49947866,157.67,157.62,14.13162017]
[1748819960414,14.13162017,157.68,157.58,51.52407225]
[1748819960585,40.13162017,157.65,157.6,14.13162017]
[1748819960779,40.13162017,157.65,157.61,14.13162017]
[1748819960780,26.0,157.65,157.61,14.13162017]
[1748819960985,26.0,157.65,157.62,14.13162017]
[1748819961191,26.0,157.65,157.62,6.34401937]
[1748819962991,26.0,157.65,157.62,20.47563954]
[1748819963404,26.0,157.65,157.62,6.34401937]
[1748819964699,26.0,157.65,157.59,6.3455803]
[1748819964900,40.13162017,157.65,157.6,14.13162017]
[1748819965813,40.13162017,157.65,157.61,6.34477507]
[1748819966005,148.9,157.64,157.61,6.34477507]
[1748819966592,163.03162017,157.64,157.59,20.47681393]
[1748819967709,148.9,157.64,157.59,20.47681393]
[1748819968507,163.03162017,157.64,157.57,6.34638573]
[1748819968701,163.03162017,157.63,157.58,14.13162017]
[1748819968900,148.9,157.63,157.58,14.13162017]
[1748819969107,148.9,157.63,157.6,14.13162017]
[1748819970506,148.9,157.63,157.61,6.34477507]
[1748819970794,148.9,157.62,157.61,6.34477507]
[1748819972514,148.9,157.62,157.6,6.34508833]
[1748819973494,148.9,157.62,157.6,14.13162017]
[1748819974412,148.9,157.62,157.6,20.47663212]
[1748819975407,148.9,157.62,157.6,6.34501195]
[1748819977294,148.9,157.62,157.6,20.47663212]
[1748819978702,148.9,157.62,157.61,14.13162017]
[1748819981022,148.9,157.62,157.61,20.47639524]
[1748819982299,148.9,157.66,157.61,36.33833293]
[1748819982500,148.9,157.66,157.65,14.13162017]
[1748819983112,148.9,157.66,157.65,20.4747854]
[1748819985004,148.9,157.66,157.65,6.34316523]
[1748819985217,148.9,157.66,157.64,63.69162017]
[1748819985218,148.9,157.66,157.64,10.34]
[1748819985521,163.03162017,157.66,157.62,6.34430339]
[1748819985905,163.03162017,157.66,157.62,20.47592356]
[1748819985906,148.9,157.66,157.62,20.47592356]
[1748819990006,163.03162017,157.66,157.62,6.34430339]
[1748819990200,148.9,157.66,157.62,6.34430339]
[1748819990414,148.9,157.66,157.62,14.13162017]
[1748819990928,148.9,157.66,157.61,20.47639524]
[1748819991120,148.9,157.65,157.61,20.47639524]
[1748819992821,148.9,157.65,157.62,14.13162017]
[1748819993003,148.9,157.65,157.61,6.34477507]
[1748819993206,148.9,157.65,157.61,20.47639524]
[1748819994515,148.9,157.65,157.63,6.34397005]
[1748819996631,148.9,157.65,157.61,14.13162017]
[1748819996827,148.9,157.65,157.62,6.34437254]
[1748820000417,148.9,157.65,157.61,6.34477507]
[1748820000647,148.9,157.65,157.61,20.47639524]
[1748820002434,148.9,157.65,157.62,14.13162017]
[1748820004128,148.9,157.65,157.63,20.47559022]
[1748820005336,148.9,157.65,157.64,14.13162017]
[1748820005538,148.9,157.65,157.64,53.43162017]
[1748820005726,148.9,157.65,157.64,39.3]
[1748820006249,148.9,157.65,157.63,6.34397005]
[1748820006724,148.9,157.65,157.62,6.34423966]
[1748820007863,148.9,157.65,157.61,6.34477507]
[1748820009048,163.03162017,157.65,157.61,6.34477507]
[1748820010540,148.9,157.64,157.61,6.34477507]
[1748820010929,148.9,157.63,157.6,30.81673607]
[1748820011157,163.03162017,157.63,157.58,16.72562392]
[1748820011340,14.13162017,157.61,157.58,16.72562392]
[1748820012036,14.13162017,157.62,157.58,16.72562392]
[1748820012419,14.13162017,157.61,157.58,10.38]
[1748820012656,14.13162017,157.6,157.57,6.34626241]
[1748820012921,14.13162017,157.61,157.57,6.34626241]
[1748820014025,14.13162017,157.6,157.56,6.34678852]
[1748820014743,14.13162017,157.58,157.55,10.38]
[1748820014955,14.13162017,157.58,157.53,91.32]
[1748820014956,14.13162017,157.56,157.53,97.66795191]
[1748820015126,14.13162017,157.56,157.53,6.34795191]
[1748820015440,163.03162017,157.57,157.52,16.7283048]
[1748820015828,148.9,157.57,157.53,14.13162017]
[1748820016026,148.9,157.57,157.54,14.13162017]
[1748820016247,148.9,157.57,157.55,6.34719136]
[1748820017845,148.9,157.57,157.54,6.3474843]
[1748820018024,163.03162017,157.57,157.54,6.3474843]
[1748820018445,163.03162017,157.57,157.53,6.3479972]
[1748820019231,148.9,157.56,157.53,6.3479972]
[1748820023070,163.03162017,157.56,157.53,6.3479972]
[1748820023276,163.03162017,157.55,157.52,16.72828876]
[1748820024234,163.03162017,157.55,157.52,10.38]
[1748820025437,14.13162017,157.54,157.52,10.38]
[1748820025842,14.13162017,157.53,157.49,0.08972278]
[1748820026045,174.9,157.55,157.5,6.34916512]
[1748820026243,14.13162017,157.54,157.5,6.34916512]
[1748820026646,40.13162017,157.52,157.49,6.43931152]
[1748820029058,26.0,157.52,157.49,6.43931152]
[1748820029958,14.13162017,157.53,157.49,6.43931152]
[1748820030662,14.13162017,157.52,157.49,6.43931152]
[1748820031539,26.0,157.54,157.49,6.43931152]
[1748820031737,40.13162017,157.54,157.49,20.57093169]
[1748820031951,148.9,157.55,157.5,14.13162017]
[1748820032155,163.03162017,157.55,157.5,14.13162017]
[1748820032755,163.03162017,157.55,157.51,6.34880325]
[1748820033651,14.13162017,157.52,157.5,6.34910043]
[1748820033861,148.9,157.55,157.5,6.34910043]
[1748820033862,14.13162017,157.53,157.5,6.34910043]
[1748820034046,163.03162017,157.55,157.5,20.4807206]
[1748820034244,163.03162017,157.55,157.51,14.13162017]
[1748820034245,148.9,157.55,157.51,14.13162017]
[1748820034446,148.9,157.55,157.52,14.13162017]
[1748820034677,148.9,157.55,157.53,6.3479972]
[1748820036972,148.9,157.55,157.52,22.2194007]
[1748820037373,148.9,157.55,157.52,32.4794007]
[1748820038452,148.9,157.55,157.52,46.61102087]
[1748820040051,148.9,157.55,157.52,85.73102087]
[1748820048988,148.9,157.55,157.54,14.13162017]
[1748820049160,148.9,157.59,157.54,53.17162017]
[1748820049366,148.9,157.59,157.54,39.04]
[1748820049666,14.13162017,157.55,157.52,16.6084002]
[1748820051977,14.13162017,157.56,157.52,16.6084002]
[1748820053878,148.9,157.58,157.55,14.13162017]
[1748820054261,148.9,157.58,157.54,14.13162017]
[1748820055678,148.9,157.58,157.55,6.34719136]
[1748820056581,148.9,157.58,157.55,36.34678994]
[1748820056885,148.9,157.58,157.56,14.13162017]
[1748820057083,15.68102017,157.61,157.56,14.13162017]
[1748820057864,14.13162017,157.6,157.57,6.34638573]
[1748820058262,14.13162017,157.59,157.57,6.34638573]
[1748820059363,14.13162017,157.59,157.55,22.21516977]
[1748820059774,26.0,157.6,157.55,36.34678994]
[1748820059977,40.13162017,157.6,157.55,36.34678994]
[1748820063477,14.13162017,157.58,157.55,6.34719136]
[1748820063678,14.13162017,157.57,157.55,6.34719136]
[1748820064797,148.9,157.56,157.53,6.3479972]
[1748820064993,163.03162017,157.56,157.53,6.3479972]
[1748820065794,148.9,157.56,157.53,6.3479972]
[1748820066491,148.9,157.56,157.53,20.47961737]
[1748820067487,148.9,157.56,157.54,14.13162017]
[1748820067696,26.0,157.6,157.55,14.13162017]
[1748820067697,148.9,157.6,157.55,14.13162017]
[1748820067892,163.03162017,157.64,157.59,14.13162017]
[1748820068401,14.13162017,157.6,157.58,16.52562456]
[1748820068700,14.13162017,157.6,157.58,10.18]
[1748820069097,40.13162017,157.6,157.58,10.18]
[1748820069269,40.13162017,157.6,157.54,63.29162017]
[1748820069270,14.13162017,157.59,157.54,63.29162017]
[1748820070306,14.13162017,157.59,157.55,6.34719136]
[1748820070480,14.13162017,157.57,157.55,6.34719136]
[1748820070803,14.13162017,157.57,157.54,10.18]
[1748820070804,14.13162017,157.56,157.54,16.52756704]
[1748820072005,14.13162017,157.56,157.55,0.5]
[1748820072603,148.9,157.55,157.51,6.34880325]
[1748820072779,148.9,157.54,157.51,20.48042342]
[1748820072979,148.9,157.54,157.52,14.13162017]
[1748820073679,148.9,157.54,157.51,36.35243154]
[1748820074475,148.9,157.54,157.51,22.22081137]
[1748820074681,148.9,157.54,157.51,6.34880325]
[1748820075216,163.03162017,157.54,157.51,6.34880325]
[1748820078602,148.9,157.53,157.51,6.34880325]
[1748820080586,148.9,157.53,157.51,20.48042342]
[1748820081295,148.9,157.53,157.51,6.34880325]
[1748820081792,148.9,157.53,157.52,0.5]
[1748820082197,148.9,157.53,157.52,6.8484002]
[1748820084189,148.9,157.53,157.52,6.3484002]
[1748820085413,148.9,157.53,157.51,6.34880325]
[1748820086314,14.13162017,157.52,157.5,16.52912154]
[1748820086903,163.03162017,157.53,157.5,16.52912154]
[1748820089728,14.13162017,157.51,157.49,6.43922731]
[1748820090028,163.03162017,157.5,157.49,0.08972278]
[1748820090531,32.78126903,157.5,157.49,0.08972278]
[1748820090702,26.0,157.47,157.43,8.33333333]
[1748820090908,14.13162017,157.44,157.43,8.33333333]
[1748820091094,26.0,157.44,157.43,8.33333333]
[1748820091404,72.9128892,157.44,157.43,8.33333333]
[1748820093110,54.26324034,157.44,157.39,6.35364381]
[1748820093311,14.13162017,157.4,157.39,6.35364381]
[1748820093804,26.0,157.44,157.39,6.35364381]
[1748820094008,148.9,157.48,157.43,14.13162017]
[1748820094203,148.9,157.52,157.45,14.13162017]
[1748820094405,148.9,157.52,157.43,49.14]
[1748820094406,40.13162017,157.52,157.46,14.13162017]
[1748820094615,14.13162017,157.51,157.43,49.14]
[1748820094814,14.13162017,157.5,157.45,14.13162017]
[1748820095009,14.13162017,157.5,157.46,6.35081925]
[1748820095708,26.0,157.51,157.46,6.35081925]
[1748820095907,40.13162017,157.51,157.46,20.48243942]
[1748820096520,14.13162017,157.51,157.46,36.35948755]
[1748820096708,14.13162017,157.52,157.47,14.13162017]
[1748820097023,14.13162017,157.51,157.46,36.35948755]
[1748820100415,14.13162017,157.5,157.46,15.87704813]
[1748820100731,14.13162017,157.51,157.46,30.0086683]
[1748820102222,148.9,157.5,157.46,30.0086683]
[1748820103125,148.9,157.5,157.46,36.35948755]
[1748820103305,163.03162017,157.5,157.46,22.22786738]
[1748820103927,148.9,157.5,157.46,36.35948755]
[1748820106412,14.13162017,157.51,157.46,36.35948755]
[1748820107946,66.5905,157.53,157.46,36.35948755]
[1748820108147,14.13162017,157.51,157.46,36.35948755]
[1748820108538,14.13162017,157.51,157.46,15.87704813]
[1748820108837,14.13162017,157.51,157.46,30.0086683]
[1748820110840,14.13162017,157.51,157.46,36.35948755]
[1748820111366,14.13162017,157.52,157.47,14.13162017]
[1748820111544,80.68212017,157.53,157.48,14.13162017]
[1748820111744,41.70212017,157.53,157.48,14.13162017]
[1748820111948,14.13162017,157.52,157.47,14.13162017]
[1748820113071,27.5705,157.53,157.48,6.3500127]
[1748820113072,14.13162017,157.51,157.48,6.3500127]
[1748820115036,14.13162017,157.51,157.47,6.35041595]
[1748820115646,14.13162017,157.52,157.47,36.358076]
[1748820115841,41.70212017,157.53,157.48,14.13162017]
[1748820116450,14.13162017,157.52,157.47,36.358076]
[1748820116842,148.9,157.51,157.47,36.358076]
[1748820117058,163.03162017,157.51,157.47,22.22645583]
[1748820117255,148.9,157.51,157.49,14.13162017]
[1748820117654,148.9,157.51,157.48,14.13162017]
[1748820118961,148.9,157.51,157.47,36.358076]
[1748820119165,148.9,157.51,157.44,22.23069105]
[1748820119344,163.03162017,157.51,157.46,14.13162017]
[1748820120959,14.13162017,157.5,157.46,14.13162017]
[1748820121545,14.13162017,157.5,157.47,6.35041595]
[1748820121888,14.13162017,157.5,157.43,10.1]
[1748820121889,14.13162017,157.48,157.43,10.1]
[1748820122038,14.13162017,157.47,157.43,10.1]
[1748820122242,14.13162017,157.47,157.44,6.35162601]
[1748820123468,148.9,157.49,157.44,6.35162601]
[1748820123469,163.03162017,157.49,157.44,14.13162017]
[1748820123643,14.13162017,157.48,157.44,15.87906504]
[1748820124464,14.13162017,157.48,157.44,30.01068521]
[1748820124679,148.9,157.49,157.46,14.13162017]
[1748820124853,148.9,157.49,157.48,14.13162017]
[1748820125883,148.9,157.49,157.48,6.3500127]
[1748820127166,148.9,157.49,157.47,6.35035344]
[1748820127373,14.13162017,157.48,157.45,6.35122261]
[1748820127672,163.03162017,157.48,157.45,6.35122261]
[1748820127871,163.03162017,157.47,157.45,6.35122261]
[1748820129679,148.9,157.47,157.45,6.35122261]
[1748820129885,148.9,157.47,157.44,6.35162601]
[1748820131780,148.9,157.46,157.44,6.35162601]
[1748820132291,148.9,157.46,157.45,14.13162017]
[1748820132665,148.9,157.49,157.45,14.13162017]
[1748820132864,148.9,157.49,157.44,22.23069105]
[1748820132865,148.9,157.49,157.48,14.13162017]
[1748820135387,148.9,157.49,157.48,6.3500127]
[1748820137381,148.9,157.49,157.48,20.48163287]
[1748820137761,148.9,157.49,157.48,6.3500127]
[1748820140386,148.9,157.49,157.48,20.48163287]
[1748820141882,148.9,157.52,157.48,36.35666462]
[1748820142383,148.9,157.52,157.49,14.13162017]
[1748820142585,148.9,157.52,157.48,22.22504445]
[1748820142887,148.9,157.52,157.48,36.35666462]
[1748820145255,163.03162017,157.52,157.48,6.3500127]
[1748820146186,14.13162017,157.49,157.44,6.35134461]
[1748820146378,14.13162017,157.47,157.44,6.35134461]
[1748820147667,14.13162017,157.47,157.43,6.35202947]
[1748820151086,148.9,157.46,157.43,6.35202947]
[1748820152284,14.13162017,157.44,157.41,6.35283654]
[1748820154084,14.13162017,157.43,157.41,6.35283654]
[1748820157691,163.03162017,157.42,157.39,6.35364381]
[1748820157872,14.13162017,157.4,157.39,6.35364381]
[1748820159487,14.13162017,157.4,157.37,6.35445129]
[1748820160097,148.9,157.42,157.38,14.13162017]
[1748820160303,148.9,157.42,157.39,14.13162017]
[1748820160682,148.9,157.42,157.38,14.13162017]
[1748820161204,148.9,157.42,157.37,22.24057952]
[1748820161382,14.13162017,157.41,157.37,6.35445129]
[1748820162371,14.13162017,157.39,157.37,6.35445129]
[1748820163473,148.9,157.38,157.37,6.35445129]
[1748820165376,148.9,157.38,157.35,6.35525897]
[1748820165684,148.9,157.38,157.35,20.48687914]
[1748820165885,148.9,157.38,157.36,14.13162017]
[1748820166682,148.9,157.38,157.35,20.48687914]
[1748820167700,148.9,157.38,157.35,36.37502658]
[1748820168282,148.9,157.38,157.35,34.87502658]
[1748820170197,148.9,157.38,157.36,14.13162017]
[1748820171487,148.9,157.38,157.37,6.35445129]
[1748820175301,148.9,157.38,157.35,30.01976761]
[1748820176507,148.9,157.38,157.35,36.37502658]
[1748820177605,148.9,157.38,157.35,14.13162017]
[1748820178015,148.9,157.38,157.34,14.13162017]
[1748820180598,169.38575563,157.38,157.32,11.6091]
[1748820180788,169.38575563,157.38,157.32,63.13162017]
[1748820180789,163.03162017,157.37,157.32,63.13162017]
[1748820181291,163.03162017,157.37,157.32,69.48805564]
[1748820181612,163.03162017,157.37,157.32,63.13162017]
[1748820182011,148.9,157.36,157.32,10.1]
[1748820182213,148.9,157.36,157.3,0.95238055]
[1748820182214,14.13162017,157.34,157.3,0.95238055]
[1748820182408,14.13162017,157.33,157.3,0.95238055]
[1748820182626,20.48775544,157.33,157.3,0.95238055]
[1748820182937,148.9,157.32,157.3,0.95238055]
[1748820183134,163.03162017,157.32,157.3,0.95238055]
[1748820183898,14.13162017,157.31,157.3,0.95238055]
[1748820184316,14.13162017,157.31,157.25,99.79333333]
[1748820184317,53.03162017,157.31,157.25,8.33333333]
[1748820184510,163.03162017,157.3,157.25,8.33333333]
[1748820184719,163.03162017,157.3,157.26,14.13162017]
[1748820184720,148.9,157.3,157.26,14.13162017]
[1748820185018,148.9,157.3,157.25,8.33333333]
[1748820185218,163.03162017,157.3,157.25,22.4649535]
[1748820185910,163.03162017,157.3,157.25,28.82416211]
[1748820186532,148.9,157.3,157.26,14.13162017]
[1748820187221,148.9,157.3,157.28,14.13162017]
[1748820187816,148.9,157.3,157.27,14.13162017]
[1748820188021,26.0,157.33,157.29,14.13162017]
[1748820188228,26.0,157.33,157.3,14.13162017]
[1748820188452,26.0,157.33,157.31,14.13162017]
[1748820188739,26.0,157.33,157.3,14.13162017]
[1748820189312,26.0,157.33,157.29,14.13162017]
[1748820189508,26.0,157.33,157.3,30.0]
[1748820190502,26.0,157.33,157.31,6.35687496]
[1748820192904,14.13162017,157.32,157.3,30.0]
[1748820193217,14.13162017,157.31,157.3,30.0]
[1748820193410,14.13162017,157.31,157.27,6.35811191]
[1748820193612,14.13162017,157.3,157.27,6.35811191]
[1748820193815,148.9,157.29,157.27,6.35811191]
[1748820194024,148.9,157.28,157.27,6.35811191]
[1748820194206,148.9,157.28,157.27,36.35811191]
[1748820194407,148.9,157.28,157.27,6.35811191]
[1748820194609,148.9,157.28,157.27,14.13162017]
[1748820194845,148.9,157.35,157.27,14.13162017]
[1748820195025,148.9,157.35,157.31,14.13162017]
[1748820195412,148.9,157.35,157.29,38.92]
[1748820195712,163.03162017,157.35,157.3,14.13162017]
[1748820195921,14.13162017,157.34,157.29,14.13162017]
[1748820196830,14.13162017,157.34,157.3,6.35727908]
[1748820197034,163.03162017,157.35,157.3,20.48889925]
[1748820197322,163.03162017,157.35,157.3,6.35727908]